fUST/lending_fUST_20250203
["ID","MTS","AMOUNT","RATE_DAILY","PERIOD"]
[351343128,1738523447368,-500.0,0.00017123,2]
[351343129,1738523447378,-668.48,0.00017123,2]
[351343130,1738523447387,-606.42,0.00017123,2]
[351343131,1738523447397,-500.0,0.00017123,2]
[351343132,1738523447406,-3980.39,0.00017123,2]
[351343133,1738523447416,-752.11,0.00017123,2]
[351343134,1738523447426,-1637.71,0.00017123,2]
[351343135,1738523447444,-500.0,0.00017123,2]
[351343136,1738523447453,-396.0,0.00017124,2]
[351343137,1738523447463,-1034.16437963,0.00017141,2]
[351343138,1738523447472,-151.0,0.0001716,2]
[351343139,1738523447482,-151.0,0.0001716,2]
[351343140,1738523447492,-151.0,0.0001716,2]
[351343141,1738523447502,-13255.3373504,0.00017173,2]
[351343142,1738523447512,-1034.16437963,0.00017176,2]
[351343143,1738523447522,-151.0,0.00017178,2]
[351343144,1738523447532,-730.066538,0.00017178,2]
[351343145,1738523447541,-730.066538,0.00017178,2]
[351343146,1738523447551,-151.0,0.00017178,2]
[351343147,1738523447560,-435.0102687,0.00017178,2]
[351343148,1738523447569,-306.0,0.00017178,2]
[351343149,1738523447579,-191.1480875,0.00017178,2]
[351343150,1738523447588,-385.3137431,0.00017178,2]
[351343151,1738523447598,-151.0,0.00017193,3]
[351343152,1738523447608,-151.0,0.000172,2]
[351343153,1738523447617,-1034.16437963,0.0001721,2]
[351343154,1738523447627,-225.67917694,0.00017231,2]
[351343155,1738523447637,-213.371535,0.00017231,2]
[351343156,1738523447646,-213.371535,0.00017231,2]
[351343157,1738523447657,-151.0,0.00017231,2]
[351343158,1738523447666,-1034.16437963,0.00017245,2]
[351343159,1738523447675,-151.0,0.00017245,2]
[351343160,1738523447688,-151.0,0.00017245,2]
[351343161,1738523447698,-1280.85595763,0.00017259,2]
[351343162,1738523447708,-6664.21,0.00017259,2]
[351343163,1738523447717,-500.0,0.00017259,2]
[351343164,1738523447727,-151.0,0.0001726,2]
[351343165,1738523447737,-151.0,0.0001726,2]
[351343166,1738523447746,-362.326422,0.0001726,2]
[351343167,1738523447756,-362.326422,0.0001726,2]
[351343168,1738523447765,-152.877224,0.0001726,2]
[351343169,1738523447774,-500.0,0.0001726,2]
[351343170,1738523447784,-500.0,0.0001726,2]
[351343171,1738523447793,-500.0,0.0001726,2]
[351343172,1738523447802,-151.85385398,0.0001726,2]
[351343173,1738523447812,-430.882438,0.0001726,2]
[351343174,1738523447821,-500.0,0.0001726,2]
[351343175,1738523447831,-430.882438,0.0001726,2]
[351343176,1738523447840,-151.0,0.0001726,2]
[351343177,1738523447849,-500.0,0.0001726,2]
[351343178,1738523447859,-500.0,0.0001726,2]
[351343179,1738523447869,-151.0,0.0001726,2]
[351343180,1738523447878,-151.0,0.0001726,2]
[351343181,1738523447887,-500.0,0.0001726,2]
[351343182,1738523447897,-151.0,0.0001726,2]
[351343183,1738523447907,-500.0,0.0001726,2]
[351343184,1738523447916,-500.0,0.0001726,2]
[351343185,1738523447926,-500.0,0.0001726,2]
[351343186,1738523447937,-500.0,0.0001726,2]
[351343187,1738523447947,-500.0,0.0001726,2]
[351343188,1738523447956,-500.0,0.0001726,2]
[351343189,1738523447966,-662.89,0.0001726,2]
[351343190,1738523447976,-500.0,0.0001726,2]
[351343191,1738523447985,-575.77,0.0001726,2]
[351343192,1738523447995,-500.0,0.0001726,2]
[351343193,1738523448004,-500.0,0.0001726,2]
[351343194,1738523448014,-1715.93,0.0001726,2]
[351343195,1738523448023,-1846.93,0.0001726,2]
[351343196,1738523448033,-500.0,0.0001726,2]
[351343197,1738523448043,-866.61,0.0001726,2]
[351343198,1738523448053,-500.0,0.0001726,2]
[351343199,1738523448063,-496.9927749,0.0001726,2]
[351343200,1738523448074,-500.0,0.0001726,2]
[351343201,1738523448087,-500.0,0.0001726,2]
[351343202,1738523448097,-939.35,0.0001726,2]
[351343203,1738523448107,-500.0,0.0001726,2]
[351343204,1738523448117,-3004.58,0.0001726,2]
[351343205,1738523448126,-255.14500513,0.0001726,2]
[351343206,1738523448143,-244.85499487,0.0001726,2]
[351343207,1738523448153,-277.12500513,0.0001726,2]
[351343208,1738523448166,-90.65393787,0.0001726,2]
[351343209,1738523448176,-1378.54,0.0001726,2]
[351343210,1738523448189,-1226.85,0.0001726,2]
[351343211,1738523448199,-367.778943,0.0001726,2]
[351343212,1738523448214,-500.0,0.0001726,2]
[351343213,1738523448225,-73.91711913,0.0001726,2]
[351343214,1738523448329,-266.9571618,0.0001726,2]
[351343215,1738523448346,-1879.48571907,0.0001726,2]
[351343216,1738523448355,-500.0,0.0001726,2]
[351343217,1738523448366,-500.0,0.0001726,2]
[351343218,1738523448375,-500.0,0.0001726,2]
[351343219,1738523448385,-500.0,0.0001726,2]
[351343220,1738523448394,-531.11,0.0001726,2]
[351343221,1738523448403,-1762.0,0.0001726,2]
[351343222,1738523448414,-500.0,0.0001726,2]
[351343223,1738523448424,-18401.63,0.0001726,2]
[351343224,1738523448435,-500.0,0.0001726,2]
[351343225,1738523448445,-1005.75,0.0001726,2]
[351343226,1738523448454,-830.26,0.0001726,2]
[351343227,1738523448464,-1569.05,0.0001726,2]
[351343228,1738523448474,-712.52,0.0001726,2]
[351343229,1738523448484,-480.01865294,0.0001726,2]
[351343230,1738523448497,-19.98134706,0.0001726,2]
[351343231,1738523448507,-501.73,0.0001726,2]
[351343232,1738523448517,-500.0,0.0001726,2]
[351343233,1738523448527,-1518.04,0.0001726,2]
[351343234,1738523448537,-8061.72,0.0001726,2]
[351343235,1738523448547,-500.0,0.0001726,2]
[351343236,1738523448557,-500.0,0.0001726,2]
[351343237,1738523448566,-500.0,0.0001726,2]
[351343238,1738523448576,-668.48,0.0001726,2]
[351343239,1738523448587,-606.42,0.0001726,2]
[351343240,1738523448597,-500.0,0.0001726,2]
[351343241,1738523448607,-3980.39,0.0001726,2]
[351343242,1738523448617,-752.11,0.0001726,2]
[351343243,1738523448626,-1637.71,0.0001726,2]
[351343244,1738523448636,-500.0,0.0001726,2]
[351343245,1738523448646,-537.0,0.00017267,2]
[351343246,1738523448752,-414.51363085,0.00017267,2]
[351343247,1738523448818,-1628.48636915,0.00017267,2]
[351343248,1738523448828,-2301.0,0.00017267,2]
[351343249,1738523448837,-1034.16437963,0.00017279,2]
[351343250,1738523448847,-600.0,0.0001728,2]
[351343251,1738523448857,-10000.0,0.000173,2]
[351343252,1738523448867,-151.0,0.000173,2]
[351343253,1738523448877,-151.0,0.000173,2]
[351343254,1738523448887,-151.0,0.000173,2]
[351343255,1738523448897,-151.0,0.00017308,3]
[351343256,1738523448907,-1034.16437963,0.00017314,2]
[351343257,1738523448917,-500.0,0.00017324,2]
[351343258,1738523448928,-1034.16437963,0.00017348,2]
[351343259,1738523448943,-1034.16437963,0.00017383,2]
[351343260,1738523448953,-6664.21,0.00017396,2]
[351343261,1738523448963,-500.0,0.00017396,2]
[351343262,1738523448973,-21673.14069253,0.00017397,5]
[351343263,1738523449018,-17173.74392368,0.00017397,5]
[351343264,1738523449028,-2536.25607632,0.00017397,5]
[351343265,1738523449040,-1283.93884796,0.00017397,5]
[351343266,1738523449050,-151.0,0.00017397,2]
[351343267,1738523449060,-200.051772,0.00017397,2]
[351343268,1738523449070,-151.0,0.00017397,2]
[351343269,1738523449080,-151.0,0.00017397,2]
[351343270,1738523449091,-444.41486398,0.00017397,2]
[351343271,1738523449101,-621.75428785,0.00017397,2]
[351343272,1738523449110,-500.0,0.00017397,2]
[351343273,1738523449121,-500.0,0.00017397,2]
[351343274,1738523449132,-151.0,0.00017397,2]
[351343275,1738523449142,-191.50544232,0.00017397,2]
[351343276,1738523449153,-500.0,0.00017397,2]
[351343277,1738523449163,-500.0,0.00017397,2]
[351343278,1738523449173,-151.0,0.00017397,2]
[351343279,1738523449186,-500.0,0.00017397,2]
[351343280,1738523449196,-151.0,0.00017397,2]
[351343281,1738523449211,-500.0,0.00017397,2]
[351343282,1738523449228,-500.0,0.00017397,2]
[351343283,1738523449237,-596.59591009,0.00017397,2]
[351343284,1738523449247,-500.0,0.00017397,2]
[351343285,1738523449258,-500.0,0.00017397,2]
[351343286,1738523449267,-500.0,0.00017397,2]
[351343287,1738523449277,-662.89,0.00017397,2]
[351343288,1738523449287,-500.0,0.00017397,2]
[351343289,1738523449297,-575.77,0.00017397,2]
[351343290,1738523449308,-553.39230005,0.00017397,2]
[351343291,1738523449318,-1715.93,0.00017397,2]
[351343292,1738523449328,-1846.93,0.00017397,2]
[351343293,1738523449339,-500.0,0.00017397,2]
[351343294,1738523449350,-866.61,0.00017397,2]
[351343295,1738523449361,-500.0,0.00017397,2]
[351343296,1738523449372,-500.0,0.00017397,2]
[351343297,1738523449382,-500.0,0.00017397,2]
[351343298,1738523449393,-939.35,0.00017397,2]
[351343299,1738523449404,-151.0,0.00017397,2]
[351343300,1738523449415,-500.0,0.00017397,2]
[351343301,1738523449425,-3004.58,0.00017397,2]
[351343302,1738523449438,-151.0,0.00017397,2]
[351343303,1738523449450,-500.0,0.00017397,2]
[351343304,1738523449460,-367.778943,0.00017397,2]
[351343305,1738523449471,-1378.54,0.00017397,2]
[351343306,1738523449481,-1226.85,0.00017397,2]
[351343307,1738523449491,-367.778943,0.00017397,2]
[351343308,1738523449501,-500.0,0.00017397,2]
[351343309,1738523449512,-2220.36,0.00017397,2]
[351343310,1738523449522,-500.0,0.00017397,2]
[351343311,1738523449532,-500.0,0.00017397,2]
[351343312,1738523449542,-500.0,0.00017397,2]
[351343313,1738523449552,-213.371535,0.00017397,2]
[351343314,1738523449562,-213.371535,0.00017397,2]
[351343315,1738523449572,-500.0,0.00017397,2]
[351343316,1738523449582,-531.11,0.00017397,2]
[351343317,1738523449593,-1762.0,0.00017397,2]
[351343318,1738523449603,-500.0,0.00017397,2]
[351343319,1738523449614,-151.0,0.00017397,2]
[351343320,1738523449623,-18401.63,0.00017397,2]
[351343321,1738523449633,-500.0,0.00017397,2]
[351343322,1738523449643,-1005.75,0.00017397,2]
[351343323,1738523449654,-830.26,0.00017397,2]
[351343324,1738523449664,-1569.05,0.00017397,2]
[351343325,1738523449674,-712.52,0.00017397,2]
[351343326,1738523449687,-500.0,0.00017397,2]
[351343327,1738523449699,-501.73,0.00017397,2]
[351343328,1738523449709,-500.0,0.00017397,2]
[351343329,1738523449719,-1518.04,0.00017397,2]
[351343330,1738523449728,-8061.72,0.00017397,2]
[351343331,1738523449738,-500.0,0.00017397,2]
[351343332,1738523449748,-500.0,0.00017397,2]
[351343333,1738523449758,-500.0,0.00017397,2]
[351343334,1738523449768,-668.48,0.00017397,2]
[351343335,1738523449778,-606.42,0.00017397,2]
[351343336,1738523449789,-500.0,0.00017397,2]
[351343337,1738523449799,-1105.52561975,0.00017397,2]
[351343338,1738523449813,-2086.8534869,0.00017397,2]
[351343339,1738523449825,-788.01089335,0.00017397,2]
[351343340,1738523449835,-752.11,0.00017397,2]
[351343341,1738523449845,-1637.71,0.00017397,2]
[351343342,1738523449854,-151.0,0.00017397,2]
[351343343,1738523449864,-730.066538,0.00017397,2]
[351343344,1738523449875,-500.0,0.00017397,2]
[351343345,1738523449885,-730.066538,0.00017397,2]
[351343346,1738523449895,-202.037625,0.00017397,2]
[351343347,1738523449905,-151.0,0.000174,2]
[351343348,1738523449916,-1034.16437963,0.00017417,2]
[351343349,1738523449927,-509.34085419,0.00017422,2]
[351343350,1738523449943,-151.0,0.00017423,3]
[351343351,1738523449954,-291.0,0.0001743,2]
[351343352,1738523449965,-1034.16437963,0.00017452,2]
[351343353,1738523449976,-153.74705125,0.00017452,2]
[351343354,1738523449985,-225.67917694,0.00017454,2]
[351343355,1738523449995,-600.0,0.0001746,2]
[351343356,1738523450006,-1034.16437963,0.00017486,2]
[351343357,1738523450016,-473.0999999,0.00017498,2]
[351343358,1738523450025,-151.0,0.00017499,2]
[351343359,1738523450035,-500.23793824,0.000175,2]
[351343360,1738523450046,-157.04228893,0.000175,2]
[351343361,1738523450063,-2609.4,0.000175,2]
[351343362,1738523450198,-500.0,0.00016437,2]
[351343363,1738523450211,-239.14114933,0.00016437,2]
[351343364,1738523450222,-613.6167475,0.00016437,2]
[351343365,1738523450232,-377.25146403,0.00016437,2]
[351343366,1738523450243,-500.0,0.00016437,2]
[351343367,1738523450258,-500.0,0.00016437,2]
[351343368,1738523450269,-500.0,0.00016437,2]
[351343369,1738523450279,-500.0,0.00016438,2]
[351343370,1738523450289,-500.0,0.00016438,2]
[351343371,1738523450300,-274.08422711,0.00016438,2]
[351343372,1738523450310,-2347.70672104,0.000175,2]
[351343373,1738523450321,-1457.16896114,0.000175,2]
[351343374,1738523450334,-14691.3383672,0.000175,2]
[351343375,1738523450345,-1309.31,0.000175,2]
[351343376,1738523450355,-362.326422,0.000175,2]
[351343377,1738523450365,-362.326422,0.000175,2]
[351343378,1738523450375,-430.882438,0.000175,2]
[351343379,1738523450386,-430.882438,0.000175,2]
[351343380,1738523450396,-154.001899,0.000175,2]
[351343381,1738523450406,-1034.16437963,0.00017521,2]
[351343382,1738523450417,-151.0,0.00017533,2]
[351343383,1738523450428,-151.0,0.00017533,2]
[351343384,1738523450440,-6664.21,0.00017533,2]
[351343385,1738523450451,-500.0,0.00017533,2]
[351343386,1738523450462,-151.0,0.00017534,2]
[351343387,1738523450472,-223.834064,0.00017534,2]
[351343388,1738523450482,-500.0,0.00017534,2]
[351343389,1738523450491,-500.0,0.00017534,2]
[351343390,1738523450501,-151.0,0.00017534,2]
[351343391,1738523450511,-500.0,0.00017534,2]
[351343392,1738523450521,-500.0,0.00017534,2]
[351343393,1738523450531,-151.0,0.00017534,2]
[351343394,1738523450541,-500.0,0.00017534,2]
[351343395,1738523450551,-151.0,0.00017534,2]
[351343396,1738523450561,-500.0,0.00017534,2]
[351343397,1738523450571,-500.0,0.00017534,2]
[351343398,1738523450580,-500.0,0.00017534,2]
[351343399,1738523450590,-500.0,0.00017534,2]
[351343400,1738523450600,-332.12859298,0.00017534,2]
[351343401,1738523450610,-662.89,0.00017534,2]
[351343402,1738523450621,-272.68710719,0.00017534,2]
[351343408,1738523541134,291.702412,0.00013973,2]
[351343460,1738523830568,166.84275103,0.00015173,2]
[351343470,1738523938690,3454.85046554,0.00015227,2]
[351343563,1738524534317,288.111895,0.00013973,2]
[351343637,1738524632558,-973.0,0.00015327,2]
[351343638,1738524632578,-13852.9697444,0.00015327,2]
[351343639,1738524632589,-282.54059356,0.00015653,2]
[351343641,1738524632609,-500.0,0.00015753,2]
[351343643,1738524632621,-153.0,0.00016267,2]
[351343644,1738524632631,-153.0,0.00016267,2]
[351343645,1738524632644,-153.0,0.00016268,2]
[351343646,1738524632655,-500.0,0.00016437,2]
[351343647,1738524632665,-377.25146403,0.00016437,2]
[351343648,1738524632675,-239.14114933,0.00016437,2]
[351343649,1738524632685,-500.0,0.00016437,2]
[351343650,1738524632699,-500.0,0.00016437,2]
[351343651,1738524632709,-500.0,0.00016437,2]
[351343652,1738524632720,-613.6167475,0.00016437,2]
[351343653,1738524632730,-500.0,0.00016437,2]
[351343654,1738524632741,-500.0,0.00016437,2]
[351343655,1738524632752,-477.3905884,0.00016437,2]
[351343656,1738524632762,-221.31746307,0.00016437,2]
[351343657,1738524632773,-500.0,0.00016437,2]
[351343658,1738524632784,-274.89135377,0.00016437,2]
[351343659,1738524632795,-500.0,0.00016437,2]
[351343660,1738524632806,-512.38044484,0.00016437,2]
[351343661,1738524632817,-500.0,0.00016437,2]
[351343662,1738524632830,-500.0,0.00016437,2]
[351343663,1738524632840,-500.0,0.00016437,2]
[351343664,1738524632851,-605.54570376,0.00016437,2]
[351343665,1738524633082,-500.0,0.00016437,2]
[351343666,1738524633093,-500.0,0.00016437,2]
[351343667,1738524633110,-482.76694128,0.00016437,2]
[351343668,1738524633122,-500.0,0.00016437,2]
[351343669,1738524633134,-646.85465632,0.00016437,2]
[351343670,1738524633144,-500.0,0.00016438,2]
[351343671,1738524633156,-500.0,0.00016438,2]
[351343672,1738524633168,-500.0,0.00016438,2]
[351343673,1738524633179,-412.55269623,0.00016438,2]
[351343674,1738524633191,-500.0,0.00016438,2]
[351343675,1738524633202,-500.0,0.00016438,2]
[351343676,1738524633213,-500.0,0.00016438,2]
[351343677,1738524633225,-429.05594589,0.00016438,2]
[351343678,1738524633236,-500.0,0.00016438,2]
[351343679,1738524633246,-500.0,0.00016438,2]
[351343680,1738524633257,-274.08422711,0.00016438,2]
[351343681,1738524633267,-500.0,0.00016438,2]
[351343682,1738524633278,-500.0,0.00016438,2]
[351343683,1738524633288,-500.0,0.00016438,2]
[351343684,1738524633299,-506.39749754,0.00016438,2]
[351343685,1738524633309,-500.0,0.00016438,2]
[351343686,1738524633319,-500.0,0.00016438,2]
[351343687,1738524633329,-500.0,0.00016438,2]
[351343688,1738524633340,-500.0,0.00016438,2]
[351343689,1738524633351,-500.0,0.00016438,2]
[351343690,1738524633368,-541.91808656,0.00016438,2]
[351343691,1738524633378,-500.0,0.00016438,2]
[351343692,1738524633388,-500.0,0.00016438,2]
[351343693,1738524633399,-500.0,0.00016438,2]
[351343694,1738524633410,-500.0,0.00016438,2]
[351343695,1738524633421,-500.0,0.00016438,2]
[351343696,1738524633431,-510.56087216,0.00016438,2]
[351343697,1738524633441,-503.95402073,0.00016438,2]
[351343698,1738524633451,-508.59996417,0.00016438,2]
[351343699,1738524633463,-500.0,0.00016438,2]
[351343700,1738524633473,-500.0,0.00016438,2]
[351343701,1738524633484,-500.0,0.00016438,2]
[351343702,1738524633495,-500.0,0.00016438,2]
[351343703,1738524633506,-257.33635515,0.00016438,2]
[351343704,1738524633516,-500.0,0.00016438,2]
[351343705,1738524633528,-504.76264301,0.00016438,2]
[351343706,1738524633539,-500.0,0.00016438,2]
[351343707,1738524633550,-500.0,0.00016438,2]
[351343708,1738524633561,-500.0,0.00016438,2]
[351343709,1738524633573,-500.0,0.00016438,2]
[351343710,1738524633584,-500.0,0.00016438,2]
[351343711,1738524633597,-500.0,0.00016438,2]
[351343712,1738524633615,-538.36654054,0.00016438,2]
[351343713,1738524633629,-1000.0,0.00016438,2]
[351343714,1738524633639,-500.0,0.00016438,2]
[351343715,1738524633650,-504.55952352,0.00016438,2]
[351343716,1738524633662,-500.0,0.00016438,2]
[351343717,1738524633672,-500.0,0.00016438,2]
[351343718,1738524633682,-200.0,0.00016438,2]
[351343719,1738524633692,-501.25702479,0.00016438,2]
[351343720,1738524633703,-500.0,0.00016438,2]
[351343721,1738524633714,-500.0,0.00016438,2]
[351343722,1738524633724,-500.0,0.00016438,2]
[351343723,1738524633734,-602.31478391,0.00016438,2]
[351343724,1738524633745,-500.0,0.00016438,2]
[351343725,1738524633756,-500.0,0.00016438,2]
[351343726,1738524633766,-500.0,0.00016438,2]
[351343727,1738524633777,-182.40436957,0.00016438,2]
[351343728,1738524633787,-500.0,0.00016438,2]
[351343729,1738524633798,-500.0,0.00016438,2]
[351343730,1738524633809,-500.0,0.00016438,2]
[351343731,1738524633820,-500.0,0.00016438,2]
[351343732,1738524633830,-500.0,0.00016438,2]
[351343733,1738524633840,-500.0,0.00016438,2]
[351343734,1738524633850,-500.0,0.00016438,2]
[351343735,1738524633867,-500.0,0.00016438,2]
[351343736,1738524633877,-500.0,0.00016438,2]
[351343737,1738524633888,-500.0,0.00016438,2]
[351343738,1738524633898,-623.85030049,0.00016438,2]
[351343739,1738524633910,-500.0,0.00016438,2]
[351343740,1738524633919,-500.0,0.00016438,2]
[351343741,1738524633929,-500.0,0.00016438,2]
[351343742,1738524633940,-500.0,0.00016438,2]
[351343743,1738524633951,-500.0,0.00016438,2]
[351343744,1738524633962,-500.0,0.00016438,2]
[351343745,1738524633972,-500.0,0.00016438,2]
[351343746,1738524633982,-500.0,0.00016438,2]
[351343747,1738524633993,-500.0,0.00016438,2]
[351343748,1738524634003,-500.0,0.00016438,2]
[351343749,1738524634014,-500.0,0.00016438,2]
[351343750,1738524634025,-500.0,0.00016438,2]
[351343751,1738524634037,-500.0,0.00016438,2]
[351343752,1738524634047,-500.0,0.00016438,2]
[351343753,1738524634057,-500.0,0.00016438,2]
[351343754,1738524634068,-500.0,0.00016438,2]
[351343755,1738524634078,-500.0,0.00016438,2]
[351343756,1738524634090,-500.0,0.00016438,2]
[351343757,1738524634103,-500.0,0.00016438,2]
[351343758,1738524634119,-500.0,0.00016438,2]
[351343759,1738524634130,-500.0,0.00016438,2]
[351343760,1738524634141,-500.0,0.00016438,2]
[351343761,1738524634154,-500.0,0.00016438,2]
[351343762,1738524634165,-500.0,0.00016438,2]
[351343763,1738524634177,-500.0,0.00016438,2]
[351343764,1738524634188,-500.0,0.00016438,2]
[351343765,1738524634200,-502.45996845,0.00016438,2]
[351343766,1738524634211,-500.0,0.00016438,2]
[351343767,1738524634223,-502.04025109,0.00016438,2]
[351343768,1738524634234,-500.0,0.00016438,2]
[351343769,1738524634244,-500.0,0.00016438,2]
[351343770,1738524634255,-500.0,0.00016438,2]
[351343771,1738524634264,-500.0,0.00016438,2]
[351343772,1738524634277,-500.0,0.00016438,2]
[351343773,1738524634289,-500.0,0.00016438,2]
[351343774,1738524634300,-500.0,0.00016438,2]
[351343775,1738524634311,-500.0,0.00016438,2]
[351343776,1738524634322,-500.0,0.00016438,2]
[351343777,1738524634334,-500.0,0.00016438,2]
[351343778,1738524634345,-553.14715339,0.00016438,2]
[351343779,1738524634364,-500.0,0.00016438,2]
[351343780,1738524634377,-500.0,0.00016438,2]
[351343781,1738524634389,-500.0,0.00016438,2]
[351343782,1738524634400,-500.0,0.00016438,2]
[351343783,1738524634411,-500.0,0.00016438,2]
[351343784,1738524634422,-500.0,0.00016438,2]
[351343785,1738524634433,-502.64960933,0.00016438,2]
[351343786,1738524634444,-500.0,0.00016438,2]
[351343787,1738524634455,-268.88091606,0.00016438,2]
[351343788,1738524634465,-500.0,0.00016438,2]
[351343789,1738524634477,-500.0,0.00016438,2]
[351343790,1738524634488,-500.0,0.00016438,2]
[351343791,1738524634498,-500.0,0.00016438,2]
[351343792,1738524634509,-500.0,0.00016438,2]
[351343793,1738524634520,-500.0,0.00016438,2]
[351343794,1738524634530,-500.0,0.00016438,2]
[351343795,1738524634540,-500.0,0.00016438,2]
[351343796,1738524634550,-500.0,0.00016438,2]
[351343797,1738524634560,-500.0,0.00016438,2]
[351343798,1738524634570,-500.0,0.00016438,2]
[351343799,1738524634582,-500.0,0.00016438,2]
[351343800,1738524634593,-500.0,0.00016438,2]
[351343801,1738524634607,-497.000863,0.00016438,2]
[351343802,1738524634617,-502.89904312,0.00016438,2]
[351343803,1738524634629,-500.0,0.00016438,2]
[351343804,1738524634639,-500.0,0.00016438,2]
[351343805,1738524634649,-500.0,0.00016438,2]
[351343806,1738524634660,-500.0,0.00016438,2]
[351343807,1738524634670,-500.0,0.00016438,2]
[351343808,1738524634682,-500.0,0.00016438,2]
[351343809,1738524634692,-500.0,0.00016438,2]
[351343810,1738524634702,-500.0,0.00016438,2]
[351343811,1738524634712,-610.09,0.00016438,2]
[351343812,1738524634721,-500.0,0.00016438,2]
[351343813,1738524634731,-500.0,0.00016438,2]
[351343814,1738524634741,-500.0,0.00016438,2]
[351343815,1738524634751,-500.0,0.00016438,2]
[351343816,1738524634761,-324.80369288,0.00016438,2]
[351343817,1738524634771,-500.0,0.00016438,2]
[351343818,1738524634781,-500.67705575,0.00016438,2]
[351343819,1738524634791,-500.0,0.00016438,2]
[351343820,1738524634800,-590.2,0.00016438,2]
[351343821,1738524634810,-500.0,0.00016438,2]
[351343822,1738524634821,-500.0,0.00016438,2]
[351343823,1738524634831,-500.0,0.00016438,2]
[351343824,1738524634840,-500.0,0.00016438,2]
[351343825,1738524634850,-321.46986938,0.00016438,2]
[351343826,1738524634867,-500.0,0.00016438,2]
[351343827,1738524634876,-500.0,0.00016438,2]
[351343828,1738524634887,-500.0,0.00016438,2]
[351343829,1738524634898,-224.81407432,0.00016438,2]
[351343830,1738524634909,-500.0,0.00016438,2]
[351343831,1738524634921,-500.0,0.00016438,2]
[351343832,1738524634932,-500.0,0.00016438,2]
[351343833,1738524634943,-500.0,0.00016438,2]
[351343834,1738524634954,-415.22673669,0.00016438,2]
[351343835,1738524634965,-500.0,0.00016438,2]
[351343836,1738524634976,-500.0,0.00016438,2]
[351343837,1738524634987,-500.0,0.00016438,2]
[351343838,1738524634997,-500.0,0.00016438,2]
[351343839,1738524635008,-500.0,0.00016438,2]
[351343840,1738524635021,-500.0,0.00016438,2]
[351343841,1738524635032,-500.0,0.00016438,2]
[351343842,1738524635043,-897.77,0.00016438,2]
[351343843,1738524635054,-500.0,0.00016438,2]
[351343844,1738524635065,-500.0,0.00016438,2]
[351343845,1738524635076,-500.0,0.00016438,2]
[351343846,1738524635087,-500.0,0.00016438,2]
[351343847,1738524635098,-500.0,0.00016438,2]
[351343848,1738524635113,-500.0,0.00016438,2]
[351343849,1738524635123,-500.0,0.00016438,2]
[351343850,1738524635132,-500.0,0.00016438,2]
[351343851,1738524635143,-500.0,0.00016438,2]
[351343852,1738524635154,-501.92392049,0.00016438,2]
[351343853,1738524635166,-1334.63,0.00016438,2]
[351343854,1738524635273,-500.0,0.00016438,2]
[351343855,1738524635284,-326.63068507,0.00016438,2]
[351343856,1738524635295,-820.61,0.00016438,2]
[351343857,1738524635305,-500.0,0.00016438,2]
[351343858,1738524635315,-500.0,0.00016438,2]
[351343859,1738524635326,-502.7737055,0.00016438,2]